Workbook

Sheet Version
B7: Modifications juin 2023 - ICEDD
B8: Mise à jour de valeurs, logo, etc - Umax des planchers (0,30 devenu 0,24 depuis 2017) Améliorations diverses /

Sheet Calcul du K
D2: "Niveau K" et bilan énergétique d'un bâtiment
D3: - encodez les données relatives à votre situation dans les cases bleues.
D4: - les résultats sont repris dans les cases jaunes.
C6: Si vous ne connaissez pas les caractéristiques thermiques exactes de vos parois, vous pouvez accéder
C7: à un catalogue de parois types et de leur coefficient de transmission thermique k, en cliquant ici :
B11: 1° | C11: Calcul du niveau d'isolation thermique globale "K" d'un bâtiment, suivant NBN B62-301
C12: Attention: cette méthode de calcul ne correspond pas à la méthode réglementaire actuelle. Elle présente une approche simplifiée concernant les déperditions par le sol et vers les espaces contigus non chauffés.
C14: Références du bâtiment | D14: Maitre d'ouvrage/Architecte/Auteur du projet | H14: N° de dossier :
H15: Date :
C17: Parois de la superficie de déperdition thermique | D17: Uj [W/(m².K)] | E17: Aj [m²] | F17: Uj . Aj [W/K] | G17: S U j . Aj [W/K] | H17: aj | I17: S aj . Uj .Aj [W/K]
B18: 1. | C18: Fenêtres, tabatières, coupoles et autres parois translucides (Umax 1,8 en RW et 1,1 pour le vitrage) | F18: =D18*E18 -> 0 | G18: =+F18+F19+F20 -> 0 | H18: 1 | I18: =+H18*G18 -> 0
F19: =D19*E19 -> 0
F20: =D20*E20 -> 0
B21: 2. | C21: Portes extérieures (Umax 2,0 en RW) | F21: =D21*E21 -> 0 | G21: =+F22+F21 -> 0 | H21: 1 | I21: =+H21*G21 -> 0
F22: =D22*E22 -> 0
B23: 3. | C23: Murs extérieurs, façades (Umax 0,24) | F23: =D23*E23 -> 0 | G23: =+F23+F24+F25+F26 -> 0 | H23: 1 | I23: =+H23*G23 -> 0
F24: 0
F25: 0
F26: 0
B27: 4. | C27: Toitures (plates, inclinées, …) ou plafonds supérieurs en-dessous des espaces non-protégés (Umax 0,24) | F27: 0 | G27: =+F28+F27 -> 0 | H27: 1 | I27: =+H27*G27 -> 0
F28: 0
B29: 5. | C29: Planchers au-dessus de l'ambiance extérieure (Umax 0,3) | F29: 0 | G29: =+F30+F29 -> 0 | H29: 1 | I29: =+H29*G29 -> 0
F30: 0
B31: 6. | C31: Planchers au-dessus d'espaces voisins non à l'abri du gel (vide sanitaire) (Umax 0,3) | F31: 0 | G31: =+F32+F31 -> 0 | H31: 1 | I31: =+H31*G31 -> 0
F32: 0
B33: 7. | C33: Planchers au-dessus d'espaces voisins à l'abri du gel (caves) (Umax 0,3; Rmin 1,75) | F33: 0 | G33: =+F34+F33 -> 0 | H33: =2/3 -> 0.6666666667 | I33: =+H33*G33 -> 0
F34: 0
B35: 8. | C35: Planchers sur le sol (Umax 0,3; Rmin 1,75) | F35: 0 | G35: =+F36+F35 -> 0 | H35: 0.3333333333 | I35: =+H35*G35 -> 0
F36: 0
B37: 9. | C37: Murs extérieurs en contact avec le sol (murs enterrés), un vide sanitaire ou une cave (Rmin 1,5) | F37: 0 | G37: =+F38+F37 -> 0 | H37: =2/3 -> 0.6666666667 | I37: =+H37*G37 -> 0
F38: 0
B39: 10. | C39: Parois en contact avec des espaces voisins non à l'abri du gel (Umax 1) | F39: 0 | G39: =+F40+F39 -> 0 | H39: 1 | I39: =+H39*G39 -> 0
F40: 0
B41: 11. | C41: Parois en contact avec des espaces voisins à l'abri du gel (Umax 1) | F41: 0 | G41: =+F41+F42+F43+F44 -> 0 | H41: 0.6666666667 | I41: =+H41*G41 -> 0
F42: 0
F43: 0
F44: 0
B45: 12. | C45: TOTAUX (superficie de déperdition) | D45: At = S Aj = | E45: =SUM(E18:E44) -> 0 | H45: S aj . Uj .Aj = | I45: =SUM(I18:I44) -> 0
C47: PONTS THERMIQUES | D47: Ψlj [W/(m.K)] | E47: lj [m] | F47: Ψlj . lj [W/K] | G47: S Ψlj . lj [W/K]
B48: 13. | C48: Suivant les définitions de la NBN 62-002 | F48: =D48*E48 -> 0 | G48: =+F48+F49+F50+F51 -> 0
F49: =D49*E49 -> 0
F50: =D50*E50 -> 0
F51: =D51*E51 -> 0
B53: 14. | C53: DEPERDITION THERMIQUE DE LA SUPERFICIE DE DEPERDITION | D53: S aj . Uj .Aj + S Ψlj . Lj = | G53: =+G48+I45 -> 0 | I53: W/K
B54: 15. | C54: COEFFICIENT MOYEN DE TRANSMISSION THERMIQUE | D54: Um = | G54: =+IF(E45=0,0,G53/E45) -> 0 | I54: W/m².K
B55: 16. | C55: VOLUME PROTEGE DU BATIMENT | D55: V = | I55: m³
B56: 17. | C56: COMPACITE VOLUMIQUE DU BATIMENT | D56: V/At = | G56: =+IF(E45=0,0,G55/E45) -> 0 | I56: m
B57: 18. | C57: NIVEAU D'ISOLATION THERMIQUE GLOBALE DU BATIMENT | D57: Si V/At < 1 : Um x 100 = K... | G57: =+IF(G56<1.0001,G54*100," ") -> 0
D58: Si 1 < V/At < 4 : Um x 300/(V/At +2) = K… | G58: =+IF(G56<1," ",IF(G56>4," ",G54*300/(G56+2))) -> 
D59: Si V/At > 4 : Um x 50 = K… | G59: =IF(G56>3.9999,G54*50," ") -> 
B63: 2° | C63: Bilan énergétique du bâtiment (en 1ère approximation - bâtiment non climatisé)
B66: 1. | C66: Situation géographique
C67: Commune | F67: L'option simplificatrice consiste à considérer
F68: que la saison de chauffe est normalisée
F69: du 15 septembre au 15 mai, et donc dure 242 jours.
C72: Température extérieure de base | D72: =INDEX('Liste des communes'!B3:C3356,'Liste des communes'!E2,2) -> -11 | E72: °C | F72: Une température extérieure hivernale moyenne équivalente
C73: Degrés-Jours du lieu en base 15/15 | D73: =INDEX('Liste des communes'!B3:C3356,'Liste des communes'!E2,1) -> 2548.227 | F73: est alors déduite des degrés-jours du lieu.
C74: Température extérieure hivernale moyenne | D74: =15-D73/D75 -> 4.470136364 | E74: °C | F74: Ex à Bruxelles : 2087 D°J en base 15, tout se passe donc comme
C75: Durée de la saison de chauffe | D75: 242 | E75: jours | F75: si l'hiver durait 242 jours à une température de 15 - 2087/242 = 6,4 °C
B78: 2. | C78: Type de bâtiment | F78: Valeurs moyennes indicatives
F79: Home/Hôpital | G79: Bureaux | H79: Habitat | I79: Ecole
C80: Température intérieure moyenne des locaux | D80: 21 | E80: °C --> | F80: 24 °C | G80: 21°C | H80: 20 °C | I80: 20 °C
C81: Réduction pour coupure de nuit et de WE | D81: 3 | E81: K --> | F81: 0 K | G81: 3 K | H81: 2 K | I81: 6 K (*)
C82: Réduction pour apports solaires et internes | D82: 4 | E82: K --> | F82: 3 K | G82: 4 K | H82: 3 K | I82: 3 K
C83: Température moyenne intérieure équivalente | D83: =+D80-D81-D82 -> 14 | E83: °C | F83: (*) congés scolaires compris; si cours du soir, prendre 4,5 K
F84: (source : données UREBA)
B86: 3. | C86: Renouvellement d'air
F87: bâtiment passif | G87: Moyenne | H87: bâtiment ancien
C88: niveau d'étanchéité à l'air | D88: 0.1 | E88: 1/h --> | F88: =0.6/20 -> 0.03 | G88: =AVERAGE(F88,H88) -> 0.165 | H88: =6/20 -> 0.3
C89: ventilation hygiénique | D89: 0.45 | E89: 1/h --> | F89: minimum = 0.3 1/h, ou déterminé sur base des règles PEB
C90: Rendement de récupération de chaleur sur la VMC | D90: 80 | E90: % | F90: Renouvellement d’air par défaut pour bâtiment ancien : 0,3 (via l'ouverture des fenêtres).
B93: 3. | C93: Bilan des puissances
C94: Pertes par ventilation | D94: =0.34*(D88+D89)*G55*(D80-D72)/1000 -> 0 | E94: kW --> | F94: 0,34 [Wh/m³.K] x b x V [m³] x (T°int-T°ext base) /1000,
C95: Pertes par parois | D95: =+G53*(D80-D72)/1000 -> 0 | E95: kW | F95: (où l'échangeur thermique éventuel est négligé : cas extrême).
C96: Puissance chaudière | D96: =(+D95+D94) -> 0 | E96: kW --> | F96: (pertes par parois + pertes par ventilation)
F97: (ne pas prévoir les 27% traditionnels de surpuissance
F98: pour la relance si l'air neuf est arrêté durant cette période)
B99: 4. | C99: Bilan des consommations
F100: Vieille installation | G100: Moyenne | H100: Nouv. installation
C101: Rendement d'exploitation de l'inst. de chauffage | D101: 0.75 | E101: - --> | F101: 0.65 | G101: 0.75 | H101: 0.85
F103: Pourcentage | H103: Equivalent Fuel ou Gaz
C104: Toiture | D104: =+I27*(D$83-D$74)*D$75*24/(1000) -> 0 | E104: kWh/an | F104: =+IF(D$111=0,"",D104/D$111) ->  | H104: =+D104/10 -> 0 | I104: litres ou m³/an | M104: =+F104 ->  | T104: =+C104 -> Toiture
C105: Murs | D105: =+(I23+I37+I39+I41)*(D$83-D$74)*D$75*24/(1000) -> 0 | E105: kWh/an | H105: 0 | I105: litres ou m³/an | T105: =+C105 -> Murs
C106: Vitrages - portes | D106: =+(I18+I21)*(D$83-D$74)*D$75*24/(1000) -> 0 | E106: kWh/an | H106: 0 | I106: litres ou m³/an | T106: Vitrages - portes
C107: Planchers | D107: =+(I29+I31+I33+I35)*(D$83-D$74)*D$75*24/(1000) -> 0 | E107: kWh/an | H107: 0 | I107: litres ou m³/an | T107: =+C107 -> Planchers
C108: Ventilation | D108: =+(0.34*G55*(D88+D89*(1-D90/100)))*(D$83-D$74)*D$75*24/(1000) -> 0 | E108: kWh/an | H108: 0 | I108: litres ou m³/an | T108: =+C108 -> Ventilation
C109: Pertes exploitation chauffage | D109: =+SUM(D104:D108)*(1/D101-1) -> 0 | E109: kWh/an | H109: 0 | I109: litres ou m³/an | T109: Pertes chauffage
C111: Total | D111: =+SUM(D104:D109) -> 0 | E111: kWh/an | F111: =+SUM(F104:F109) -> 0 | H111: =+SUM(H104:H109) -> 0 | I111: litres ou m³/an
C131: Pour enregistrer vos données dans | E131: Pour imprimer cette feuille sur votre
C132: un fichier "Excel", cliquez ici : | E132: imprimante par défaut, cliquez ici :

Sheet Parois types
B3: Attention, les valeurs reprises ci-dessous sont indicatives. Elles varient en fonction des
B4: matériaux utilisés réellement dans la composition de chaque paroi.
B8: Type de paroi | C8: Coefficient kj (ou U)
B10: Fenétre avec simple vitrage | C10: 6 | D10: W/m²K
B11: Fenêtre avec double vitrage traditionnel | C11: 3 | D11: W/m²K
B12: Fenêtre avec double vitrage HR | C12: 1.5 | D12: W/m²K
B13: Fenêtre avec triple vitrage | C13: 0.8 | D13: W/m²K
B15: Porte en bois | C15: 2.5 | D15: W/m²K
B16: Porte en aluminium isolé | C16: 1.5 | D16: W/m²K
B18: Mur plein de 29 cm | C18: 2.2 | D18: W/m²K
B19: Mur plein de 39 cm | C19: 1.8 | D19: W/m²K
B20: Mur creux non isolé | C20: 1.7 | D20: W/m²K
B21: Mur creux isolé existant | C21: 0.45 | D21: W/m²K
B22: Mur plein bardé non isolé | C22: 1.8 | D22: W/m²K
B23: Mur plein bardé isolé existant | C23: 0.5 | D23: W/m²K
B24: Mur de pierre non isolé de 30 cm | C24: =ROUND(1/(0.17+0.3/3.49),1) -> 3.9 | D24: W/m²K
B25: Mur de pierre non isolé de 40 cm | C25: =ROUND(1/(0.17+0.4/3.49),1) -> 3.5 | D25: W/m²K
B26: Mur de pierre non isolé de 50 cm | C26: =ROUND(1/(0.17+0.5/3.49),1) -> 3.2 | D26: W/m²K
B27: Mur de pierre non isolé de 60 cm | C27: =ROUND(1/(0.17+0.6/3.49),1) -> 2.9 | D27: W/m²K
B28: Mur de béton cellulaire de 25 cm (collé) | C28: =ROUND(1/(0.17+0.25/0.19),1) -> 0.7 | D28: W/m²K
B29: Mur de béton cellulaire de 30 cm (collé) | C29: =ROUND(1/(0.17+0.3/0.19),1) -> 0.6 | D29: W/m²K
B30: Mur de béton cellulaire de 35 cm (collé) | C30: =ROUND(1/(0.17+0.35/0.19),1) -> 0.5 | D30: W/m²K
B31: Mur aux normes PEB 2015 ou ultérieures | C31: 0.24 | D31: W/m²K
B32: Mur "passif" | C32: 0.15 | D32: W/m²K
B34: Toiture plate en béton non isolée | C34: 2.8 | D34: W/m²K
B35: Toiture plate en béton isolée existante | C35: 0.45 | D35: W/m²K
B36: Toiture inclinée isolée (6 cm de laine) | C36: 0.6 | D36: W/m²K
B37: Toiture inclinée isolée (8 cm de laine) | C37: 0.45 | D37: W/m²K
B38: Toiture inclinée isolée (10 cm de laine) | C38: 0.37 | D38: W/m²K
B39: Toiture aux normes PEB 2015 ou ultérieures | C39: 0.24 | D39: W/m²K
B40: Toiture "passive" | C40: 0.1 | D40: W/m²K
B41: Plancher en bois de combles inoccupés non isolé | C41: 1.7 | D41: W/m²K
B42: Plancher en bois de combles inoccupés isolé existant | C42: 0.4 | D42: W/m²K
B43: Plancher en béton de combles inoccupés non isolé | C43: 2.6 | D43: W/m²K
B44: Plancher en béton de combles inoccupés isolé existant | C44: 0.4 | D44: W/m²K
B46: Plancher sur cave en béton non isolé | C46: 2 | D46: W/m²K
B47: Plancher sur sol en béton non isolé | C47: 3.2 | D47: W/m²K
B48: Plancher sur cave en béton isolé existant | C48: 0.7 | D48: W/m²K
B49: Plancher sur sol en béton isolé existant | C49: 0.9 | D49: W/m²K
B50: Plancher sur cave aux normes PEB 2017 ou ultérieures | C50: 0.24 | D50: W/m²K
B51: Plancher sur sol aux normes PEB 2017 ou ultérieures | C51: 0.24 | D51: W/m²K
B52: Plancher "passif" | C52: 0.15 | D52: W/m²K
C55: Pour imprimer cette feuille sur votre
C56: imprimante par défaut, cliquez ici :

Sheet Liste des communes (hidden)
A2: Commune | B2: - Temp de base | D2: Cellule : | E2: 72
A3: Aaigem | B3: 2087 | C3: -8
A4: Aalbeke | B4: 1988.911 | C4: -8
A5: Aalst | B5: 2087 | C5: -8
A6: Aalst | B6: 2087 | C6: -8
A7: Aalter | B7: 1988.911 | C7: -8
A8: Aarschot | B8: 2087 | C8: -8
A9: Aarsele | B9: 1988.911 | C9: -8
A10: Aartrijke | B10: 1988.911 | C10: -8
A11: Aartselaar | B11: 1988.911 | C11: -8
A12: Abee | B12: 2281.091 | C12: -10
A13: Abolens | B13: 2087 | C13: -9
A14: Achel | B14: 2185.089 | C14: -9
A15: Achene | B15: 2281.091 | C15: -10
A16: Achet | B16: 2281.091 | C16: -10
A17: Acosse | B17: 2185.089 | C17: -9
A18: Acoz | B18: 2281.091 | C18: -9
A19: Adegem | B19: 1988.911 | C19: -8
A20: Adinkerke | B20: 1892.909 | C20: -7
A21: Affligem | B21: 2087 | C21: -8
A22: Afsnee | B22: 1988.911 | C22: -8
A23: Agimont | B23: 2379.18 | C23: -10
A24: Aineffe | B24: 2185.089 | C24: -9
A25: Aische-en-Refail | B25: 2185.089 | C25: -9
A26: Aiseau | B26: 2281.091 | C26: -9
A27: Aiseau-Presles | B27: 2281.091 | C27: -9
A28: Aisemont | B28: 2281.091 | C28: -9
A29: Alken | B29: 2087 | C29: -8
A30: Alle | B30: 2790.319 | C30: -11
A31: Alleur | B31: 2185.089 | C31: -9
A32: Alsemberg | B32: 2087 | C32: -8
A33: Alveringem | B33: 1892.909 | C33: -8
A34: Amay | B34: 2281.091 | C34: -9
A35: Amberloup | B35: 2548.227 | C35: -11
A36: Ambly | B36: 2379.18 | C36: -10
A37: Ambresin | B37: 2185.089 | C37: -9
A38: Amel | B38: 2961.453 | C38: -11
A39: Amonines | B39: 2379.18 | C39: -10
A40: Amougies | B40: 2087 | C40: -8
A41: Ampsin | B41: 2281.091 | C41: -9
A42: Andenne | B42: 2281.091 | C42: -9
A43: Anderlecht | B43: 2087 | C43: -8
A44: Anderlues | B44: 2185.089 | C44: -9
A45: Andrimont | B45: 2379.18 | C45: -10
A46: Angleur | B46: 2281.091 | C46: -9
A47: Angre | B47: 2087 | C47: -8
A48: Angreau | B48: 2087 | C48: -8
A49: Anhee | B49: 2281.091 | C49: -10
A50: Anlier | B50: 2790.319 | C50: -11
A51: Anloy | B51: 2790.319 | C51: -11
A52: Annevoie-Rouillon | B52: 2281.091 | C52: -10
A53: Ans | B53: 2185.089 | C53: -9
A54: Anseremme | B54: 2281.091 | C54: -10
A55: Anseroeul | B55: 2087 | C55: -8
A56: Anthee | B56: 2281.091 | C56: -10
A57: Antheit | B57: 2185.089 | C57: -9
A58: Anthisnes | B58: 2281.091 | C58: -9
A59: Antoing | B59: 2087 | C59: -8
A60: Antwerpen | B60: 1988.911 | C60: -8
A61: Anvaing | B61: 2087 | C61: -8
A62: Anzegem | B62: 1988.911 | C62: -8
A63: Appels | B63: 1988.911 | C63: -8
A64: Appelterre-Eichem | B64: 2087 | C64: -8
A65: Arbre | B65: 2087 | C65: -8
A66: Arbre | B66: 2281.091 | C66: -9
A67: Arbrefontaine | B67: 2548.227 | C67: -11
A68: Arc-Ainieres | B68: 2087 | C68: -8
A69: Arc-Wattripont | B69: 2087 | C69: -8
A70: Archennes | B70: 2087 | C70: -8
A71: Ardooie | B71: 1988.911 | C71: -8
A72: Arendonk | B72: 2185.089 | C72: -9
A73: Argenteau | B73: 2281.091 | C73: -9
A74: Arlon | B74: 2548.227 | C74: -11
A75: Arquennes | B75: 2087 | C75: -9
A76: Arsimont | B76: 2185.089 | C76: -9
A77: Arville | B77: 2548.227 | C77: -10
A78: As | B78: 2087 | C78: -9
A79: Aspelare | B79: 2087 | C79: -8
A80: Asper | B80: 1988.911 | C80: -8
A81: Asquillies | B81: 2185.089 | C81: -8
A82: Asse | B82: 2087 | C82: -8
A83: Assebroek | B83: 1988.911 | C83: -8
A84: Assenede | B84: 1988.911 | C84: -8
A85: Assenois | B85: 2790.319 | C85: -11
A86: Assent | B86: 2087 | C86: -9
A87: Assesse | B87: 2281.091 | C87: -10
A88: Astene | B88: 2087 | C88: -8
A89: Ath | B89: 2087 | C89: -8
A90: Athis | B90: 2185.089 | C90: -8
A91: Athus | B91: 2379.18 | C91: -10
A92: Attenhoven | B92: 2087 | C92: -8
A93: Attenrode | B93: 2087 | C93: -8
A94: Attert | B94: 2548.227 | C94: -11
A95: Attre | B95: 2087 | C95: -8
A96: Aubange | B96: 2379.18 | C96: -10
A97: Aubechies | B97: 2087 | C97: -8
A98: Aubel | B98: 2281.091 | C98: -10
A99: Aublain | B99: 2379.18 | C99: -10
A100: Auby-sur-Semois | B100: 2790.319 | C100: -11
A101: Auderghem | B101: 2087 | C101: -8
A102: Audregnies | B102: 2087 | C102: -8
A103: Aulnois | B103: 2185.089 | C103: -9
A104: Autelbas | B104: 2548.227 | C104: -11
A105: Autre-Eglise | B105: 2087 | C105: -8
A106: Autreppe | B106: 2185.089 | C106: -8
A107: Auvelais | B107: 2185.089 | C107: -9
A108: Ave-et-Auffe | B108: 2548.227 | C108: -10
A109: Avekapelle | B109: 1892.909 | C109: -7
A110: Avelgem | B110: 2087 | C110: -8
A111: Avennes | B111: 2185.089 | C111: -9
A112: Averbode | B112: 2087 | C112: -9
A113: Avernas-le-Bauduin | B113: 2087 | C113: -9
A114: Avin | B114: 2185.089 | C114: -9
A115: Awans | B115: 2185.089 | C115: -9
A116: Awenne | B116: 2548.227 | C116: -10
A117: Awirs | B117: 2281.091 | C117: -9
A118: Aye | B118: 2379.18 | C118: -10
A119: Ayeneux | B119: 2281.091 | C119: -10
A120: Aywaille | B120: 2379.18 | C120: -10
A121: Baaigem | B121: 1988.911 | C121: -8
A122: Baal | B122: 2087 | C122: -8
A123: Baardegem | B123: 2087 | C123: -8
A124: Baarle-Hertog | B124: 2185.089 | C124: -9
A125: Baasrode | B125: 1988.911 | C125: -8
A126: Bachte-Maria-Leerne | B126: 1988.911 | C126: -8
A127: Baelen | B127: 2379.18 | C127: -10
A128: Bagimont | B128: 2548.227 | C128: -11
A129: Baileux | B129: 2379.18 | C129: -10
A130: Bailievre | B130: 2281.091 | C130: -10
A131: Baillamont | B131: 2790.319 | C131: -11
A132: Bailleul | B132: 2087 | C132: -8
A133: Baillonville | B133: 2379.18 | C133: -10
A134: Baisieux | B134: 2087 | C134: -8
A135: Baisy-Thy | B135: 2185.089 | C135: -9
A136: Balatre | B136: 2185.089 | C136: -9
A137: Balegem | B137: 1988.911 | C137: -8
A138: Balen | B138: 2185.089 | C138: -9
A139: Bambrugge | B139: 2087 | C139: -8
A140: Bande | B140: 2379.18 | C140: -10
A141: Barben‡on | B141: 2281.091 | C141: -9
A142: Barchon | B142: 2281.091 | C142: -9
A143: Baronville | B143: 2379.18 | C143: -10
A144: Barry | B144: 2087 | C144: -8
A145: Barvaux | B145: 2379.18 | C145: -10
A146: Barvaux-Condroz | B146: 2379.18 | C146: -10
A147: Bas-Warneton | B147: 1988.911 | C147: -8
A148: Bas-Oha | B148: 2281.091 | C148: -9
A149: Basecles | B149: 2087 | C149: -8
A150: Basse-Bodeux | B150: 2379.18 | C150: -10
A151: Bassenge | B151: 2185.089 | C151: -8
A152: Bassevelde | B152: 1988.911 | C152: -8
A153: Bassilly | B153: 2087 | C153: -8
A154: Bastogne | B154: 2790.319 | C154: -11
A155: Batsheers | B155: 2087 | C155: -8
A156: Battice | B156: 2281.091 | C156: -10
A157: Battignies | B157: 2185.089 | C157: -8
A158: Baudour | B158: 2087 | C158: -8
A159: Bauffe | B159: 2087 | C159: -8
A160: Baugnies | B160: 2087 | C160: -8
A161: Baulers | B161: 2087 | C161: -9
A162: Bavegem | B162: 2087 | C162: -8
A163: Bavikhove | B163: 1988.911 | C163: -8
A164: Bazel | B164: 1988.911 | C164: -8
A165: Beaufays | B165: 2281.091 | C165: -9
A166: Beaumont | B166: 2281.091 | C166: -9
A167: Beauraing | B167: 2379.18 | C167: -10
A168: Beausaint | B168: 2548.227 | C168: -10
A169: Beauvechain | B169: 2087 | C169: -8
A170: Beauvoorde | B170: 1892.909 | C170: -8
A171: Beauwelz | B171: 2379.18 | C171: -11
A172: Beclers | B172: 2087 | C172: -8
A173: Beek | B173: 2185.089 | C173: -9
A174: Beerlegem | B174: 2087 | C174: -8
A175: Beernem | B175: 1988.911 | C175: -8
A176: Beerse | B176: 2087 | C176: -9
A177: Beersel | B177: 2087 | C177: -8
A178: Beerst | B178: 1988.911 | C178: -8
A179: Beert | B179: 2087 | C179: -8
A180: Beervelde | B180: 1988.911 | C180: -8
A181: Beerzel | B181: 2087 | C181: -8
A182: Beez | B182: 2281.091 | C182: -9
A183: Beffe | B183: 2379.18 | C183: -10
A184: Begijnendijk | B184: 2087 | C184: -9
A185: Beho | B185: 2548.227 | C185: -11
A186: Beigem | B186: 2087 | C186: -8
A187: Bekegem | B187: 1988.911 | C187: -8
A188: Bekkerzeel | B188: 2087 | C188: -8
A189: Bekkevoort | B189: 2087 | C189: -9
A190: Belgrade | B190: 2185.089 | C190: -9
A191: Bellaire | B191: 2281.091 | C191: -9
A192: Bellecourt | B192: 2185.089 | C192: -9
A193: Bellefontaine | B193: 2548.227 | C193: -11
A194: Bellefontaine | B194: 2548.227 | C194: -10
A195: Bellegem | B195: 1988.911 | C195: -8
A196: Bellem | B196: 1988.911 | C196: -8
A197: Bellevaux | B197: 2790.319 | C197: -10
A198: Bellevaux-Ligneuville | B198: 2790.319 | C198: -11
A199: Bellingen | B199: 2087 | C199: -8
A200: Beloeil | B200: 2087 | C200: -8
A201: Belsele | B201: 1988.911 | C201: -8
... 2592 more rows
